fUST/lending_fUST_20250312
["ID","MTS","AMOUNT","RATE_DAILY","PERIOD"]
[355909494,1741711750991,1658.35,0.00024514,7]
[355909495,1741711751256,1658.35,0.00024788,7]
[355909496,1741711773194,151.0,0.00024999,7]
[355909497,1741711773604,151.0,0.00024999,7]
[355909498,1741711773984,151.0,0.00024999,7]
[355909499,1741711774047,151.0,0.00024998,7]
[355909500,1741711774392,151.0,0.00024999,7]
[355909501,1741711774445,151.0,0.00024998,7]
[355909502,1741711774779,151.0,0.00024999,7]
[355909503,1741711774895,151.0,0.00024998,7]
[355909504,1741711775444,151.0,0.00024999,7]
[355909505,1741711775576,151.0,0.00024998,7]
[355909506,1741711775614,151.0,0.00024999,7]
[355909507,1741711776052,151.0,0.00024998,7]
[355909508,1741711776172,154.116845,0.00024999,7]
[355909509,1741711776468,151.0,0.00024998,7]
[355909510,1741711776902,151.0,0.00024998,7]
[355909511,1741711777714,151.0,0.00024998,7]
[355909512,1741711777956,151.0,0.00024998,7]
[355909513,1741711778359,151.0,0.00024998,7]
[355909514,1741711778837,151.0,0.00024998,7]
[355909515,1741711779318,151.0,0.00024998,7]
[355909516,1741711779825,151.0,0.00024998,7]
[355909517,1741711780309,151.0,0.00024998,7]
[355909518,1741711780738,151.0,0.00024998,7]
[355909519,1741711781093,151.0,0.00024998,7]
[355909520,1741711781614,209.312244,0.00024998,7]
[355909522,1741711828465,-200.0,0.00023397,2]
[355909575,1741711838329,-50.0,0.00023397,2]
[355909578,1741711838339,-3466.21215261,0.00023919,2]
[355909579,1741711838348,-500.0,0.00023919,2]
[355909580,1741711838358,-389.38784742,0.00023966,2]
[355909581,1741711838370,-572.71945931,0.00023966,2]
[355909583,1741711838383,-7357.54269327,0.00023966,2]
[355909585,1741711838392,-500.0,0.00023966,2]
[355909587,1741711838401,-2110.54,0.00023966,2]
[355909589,1741711838411,-1136.23,0.00023966,2]
[355909590,1741711838420,-1186.12,0.00023966,2]
[355909591,1741711838431,-506.90291681,0.00023966,2]
[355909592,1741711838440,-1096.44,0.00023966,2]
[355909593,1741711838450,-15004.12,0.00023966,2]
[355909594,1741711838460,-425.66544732,0.00023966,2]
[355909595,1741711838469,-653.18,0.00023966,2]
[355909596,1741711838480,-500.0,0.00023966,2]
[355909597,1741711838492,-907.67,0.00023966,2]
[355909598,1741711838502,-500.0,0.00023966,2]
[355909599,1741711838511,-24550.0,0.00023967,2]
[355909600,1741711838521,-2491.24845619,0.00023967,2]
[355909601,1741711838533,-1018.50495781,0.00023967,2]
[355909602,1741711838676,-7774.49311353,0.00023967,2]
[355909655,1741711841182,-200.0,0.00027,120]
[355909656,1741711841205,-92.0,0.00027,120]
[355909663,1741711841366,-0.00146794,0.00023967,2]
[355909706,1741711843443,-316.425,0.00023966,2]
[355909713,1741711843502,-183.575,0.00023966,2]
[355909715,1741711843513,-8715.75200453,0.00023967,2]
[355909717,1741711843522,-500.0,0.00024239,2]
[355909719,1741711843533,-500.0,0.00024239,2]
[355909721,1741711843543,-500.0,0.00024239,2]
[355909723,1741711843553,-325.70219469,0.00024239,2]
[355909725,1741711843563,-500.0,0.00024239,2]
[355909727,1741711843574,-500.0,0.00024239,2]
[355909729,1741711843584,-500.0,0.00024239,2]
[355909731,1741711843594,-500.0,0.00024239,2]
[355909734,1741711843603,-500.0,0.00024239,2]
[355909737,1741711843612,-500.0,0.00024239,2]
[355909740,1741711843622,-500.0,0.00024239,2]
[355909743,1741711843631,-500.0,0.00024239,2]
[355909746,1741711843641,-500.0,0.00024239,2]
[355909749,1741711843651,-0.27136103,0.0002424,2]
[355910634,1741711891292,151.0,0.00024842,7]
[355910635,1741711891759,151.0,0.00024842,7]
[355910636,1741711892243,159.926928,0.00024842,7]
[355910648,1741711992381,151.0,0.00024842,7]
[355910649,1741711993414,1381.96,0.00023966,7]
[355910650,1741711993451,151.0,0.00024842,7]
[355910651,1741711993657,219.933128,0.0002424,7]
[355910652,1741711997543,-200.0,0.0002291,2]
[355910655,1741712013353,96313.09164469,0.00024999,11]
[355910658,1741712095231,788.71,0.00016022,2]
[355910659,1741712246843,208.0,0.00023,30]
[355910662,1741712483412,-300.0,0.00022096,2]
[355910667,1741712684349,-1129.4511453,0.00021969,2]
[355910672,1741712779858,-300.0,0.00021968,2]
[355910674,1741712786037,-152.0,0.00021969,2]
[355910675,1741712787252,-348.0,0.00021969,2]
[355910676,1741712823321,-300.0,0.00021869,4]
[355910677,1741712827831,-200.0,0.00021822,2]
[355910678,1741712854674,-250.0,0.0002165,2]
[355910681,1741712885138,-300.0,0.00021822,2]
[355910682,1741712885866,-796.02603186,0.00021822,2]
[355910683,1741712901062,-500.0,0.00021822,2]
[355910684,1741712916981,-1225.64116682,0.00021822,2]
[355910685,1741712937896,-180.09194162,0.00021822,2]
[355910686,1741712946452,-300.0,0.00021822,2]
[355910689,1741712948240,-174.812356,0.00021206,2]
[355910690,1741712948265,-174.812356,0.00021559,2]
[355910691,1741712948288,-489.6789189,0.00021822,2]
[355910692,1741712949685,-174.812356,0.00021822,2]
[355910693,1741712950283,-174.812356,0.00021822,2]
[355910694,1741712951148,-106.93767876,0.00021869,4]
[355910695,1741712951172,-174.812356,0.00021913,2]
[355910696,1741712951194,-300.0,0.00021967,2]
[355910697,1741712951215,-4253.01459924,0.00021968,2]
[355910698,1741712952777,-2122.31965609,0.00021968,2]
[355910699,1741712956094,-350.0,0.00021968,7]
[355910700,1741712967631,-328.18502749,0.00021968,2]
[355910701,1741712969230,-605.04071718,0.00021968,2]
[355910702,1741712969251,-535.52299118,0.00021968,2]
[355910703,1741712969272,-965.22,0.00021968,7]
[355910704,1741712969294,-1088.89,0.00021968,2]
[355910705,1741712969316,-23270.5488547,0.00021969,2]
[355910706,1741712969338,-200.0,0.00022096,2]
[355910707,1741712969358,-7308.56,0.00022242,2]
[355910708,1741712969379,-1315.22,0.00022242,7]
[355910709,1741712969400,-1088.89,0.00022242,2]
[355910710,1741712969422,-174.812356,0.00022266,2]
[355910711,1741712969445,-7308.56,0.00022516,2]
[355910712,1741712969466,-1315.22,0.00022516,7]
[355910713,1741712969487,-1088.89,0.00022516,2]
[355910714,1741712969509,-158.604693,0.00022751,2]
[355910715,1741712969529,-7308.56,0.0002279,2]
[355910716,1741712969550,-1315.22,0.0002279,7]
[355910717,1741712969571,-1088.89,0.0002279,2]
[355910718,1741712969593,-2.35038794,0.00022899,2]
[355910722,1741712994527,-150.0,0.00021968,2]
[355910723,1741713003727,-986.7,0.00021968,2]
[355910724,1741713003752,-1136.7,0.00022242,2]
[355910725,1741713003775,-1136.7,0.00022516,2]
[355910726,1741713003800,-1136.7,0.0002279,2]
[355910727,1741713003824,-407.49038366,0.00022899,2]
[355910728,1741713003851,-1538.0,0.000229,2]
[355910729,1741713003879,-152.0,0.00022939,2]
[355910730,1741713003904,-168.19,0.00022961,3]
[355910731,1741713003931,-300.0,0.0002297,2]
[355910732,1741713003959,-5589.51961634,0.00022971,11]
[355910733,1741713006795,-204.017126,0.00021968,2]
[355911607,1741713041188,-0.00238216,0.00021968,2]
[355912235,1741713046941,-846.74049184,0.00021968,2]
[355912238,1741713046958,-500.0,0.00021968,2]
[355912241,1741713046973,-625.96,0.00021968,2]
[355912243,1741713046989,-119.6245298,0.00021968,2]
[355912246,1741713047007,-380.3754702,0.00021968,2]
[355912249,1741713047022,-1050.76,0.00022242,2]
[355912251,1741713047036,-500.0,0.00022242,2]
[355912254,1741713047051,-625.96,0.00022242,2]
[355912257,1741713047067,-500.0,0.00022242,2]
[355912259,1741713047081,-1050.76,0.00022516,2]
[355912262,1741713047096,-500.0,0.00022516,2]
[355912265,1741713047111,-625.96,0.00022516,2]
[355912267,1741713047126,-500.0,0.00022516,2]
[355912270,1741713047141,-1050.76,0.0002279,2]
[355912273,1741713047155,-500.0,0.0002279,2]
[355912275,1741713047171,-625.96,0.0002279,2]
[355912278,1741713047186,-152.0,0.00022969,2]
[355912281,1741713047202,-500.0,0.0002297,2]
[355912283,1741713047217,-200.99246766,0.0002297,2]
[355912286,1741713047232,-218.04799516,0.0002297,2]
[355912293,1741713047294,-281.95200484,0.0002297,2]
[355912296,1741713047310,-500.0,0.0002297,2]
[355912299,1741713047325,-173.55294634,0.0002297,2]
[355912301,1741713047340,-351.00957813,0.0002297,2]
[355912444,1741713053711,-89189.04577001,0.00022971,11]
[355912449,1741713064513,-401578.95422999,0.00022971,11]
[355912450,1741713100765,-108.0,0.00027,120]
[355912451,1741713100787,-200.0,0.00027,120]
[355912452,1741713113514,-163.818954,0.00021738,10]
[355912453,1741713123537,-150.0,0.00021521,10]
[355912455,1741713149341,-188.87013029,0.0002098,2]
[355912459,1741713156037,-150.90626767,0.0002098,2]
[355912465,1741713203203,-3157.25311618,0.00020871,2]
[355912466,1741713213560,-1640.31554366,0.0002049,2]
[355912471,1741713306385,-1827.43134016,0.00020919,2]
[355912472,1741713309222,-3375.0,0.0002071,2]
[355912473,1741713332956,-3832.879049,0.00020589,2]
[355912474,1741713362347,-150.0,0.00020494,2]
[355912477,1741713487158,-259.17847854,0.00020289,2]
[355912478,1741713495528,-163.556062,0.00020086,2]
[355912481,1741713790101,-5000.0,0.00016536,2]
[355912482,1741713798077,-5000.0,0.00016536,2]
[355912484,1741713813465,-5000.0,0.00016536,2]
[355912496,1741713833176,160.0,0.0002,3]
[355912497,1741713847416,-5000.0,0.00016536,2]
[355912498,1741713854244,150.0,0.0001687,3]
[355912499,1741713855131,255.0,0.0001687,3]
[355912500,1741713855439,511.0,0.0001687,3]
[355912501,1741713855776,1021.0,0.0001687,3]
[355912502,1741713856129,2043.0,0.0001687,3]
[355912503,1741713856461,4086.0,0.0001687,3]
[355912504,1741713856819,8172.0,0.0001687,3]
[355912505,1741713857184,8602.0,0.0001687,3]
[355912506,1741713857213,7741.0,0.0001687,3]
[355912507,1741713857864,16344.0,0.0001687,3]
[355912508,1741713858019,25805.0,0.0001687,3]
[355912509,1741713858435,32688.0,0.0001687,3]
[355912510,1741713858810,17422.0,0.0001687,3]
[355912516,1741714032320,177586.77,0.0002,120]
[355912517,1741714042904,-261.43857204,0.00016207,2]
[355912518,1741714047060,-500.0,0.00016207,2]
[355912519,1741714047254,4509.86171779,0.00016022,2]
[355912521,1741714084230,-298.71079062,0.00016207,2]
[355912522,1741714096840,177.1459478,0.0001587,2]
[355912543,1741714114599,-300.0,0.00016207,2]
[355912546,1741714120786,20222.35109636,0.00015,4]
[355912547,1741714124657,683.930283,0.0002,120]
[355912549,1741714139822,6972.186793,0.0001587,2]
[355912553,1741714140281,-201.28920938,0.00016207,2]
[355912557,1741714168170,-3438.56142796,0.00016207,2]
[355912558,1741714168199,-398.54619828,0.00016767,2]
[355912559,1741714168228,-300.0,0.00016866,2]
[355912560,1741714168251,-500.0,0.00016867,2]
[355912561,1741714168272,-500.0,0.00016867,2]
[355912562,1741714168295,-437.51952603,0.00016867,2]
[355912607,1741714232213,-5000.0,0.00016698,2]
[355912610,1741714232232,-300.0,0.00016866,2]
[355912613,1741714232247,-151.0,0.00016867,2]
[355912615,1741714232262,-151.205116,0.00016867,2]
[355912616,1741714232278,-553.00798346,0.00016867,2]
[355912619,1741714232294,-500.0,0.00016867,2]
[355912621,1741714232310,-289.3218149,0.00016867,2]
[355912623,1741714232326,-1115.19116873,0.00016867,2]
[355912624,1741714232340,-537.34885476,0.00016867,2]
[355912625,1741714232354,-1115.19116873,0.00016867,2]
[355912626,1741714232373,-500.0,0.00016867,2]
[355912627,1741714232388,-500.0,0.00016867,2]
[355912628,1741714232403,-500.0,0.00016867,2]
[355912629,1741714232417,-1115.19116873,0.00016867,2]
[355912630,1741714232431,-500.0,0.00016867,2]
[355912631,1741714232446,-1115.19116873,0.00016867,2]
[355912632,1741714232459,-500.0,0.00016867,2]
[355912633,1741714232474,-1115.19116873,0.00016867,2]
[355912634,1741714232489,-500.0,0.00016867,2]
[355912635,1741714232505,-1115.19116873,0.00016867,2]
[355912636,1741714232521,-500.0,0.00016867,2]
[355912637,1741714232536,-609.32596052,0.00016867,2]
[355912638,1741714232550,-1115.19116873,0.00016867,2]
[355912639,1741714232564,-500.0,0.00016867,2]
[355912640,1741714232580,-1115.19116873,0.00016867,2]
[355912641,1741714232595,-500.0,0.00016867,2]
[355912642,1741714232614,-1115.19116873,0.00016867,2]
[355912643,1741714232629,-1115.19116873,0.00016867,2]
[355912644,1741714232646,-500.0,0.00016867,2]
[355912645,1741714232662,-1115.19116873,0.00016867,2]
[355912646,1741714232678,-500.0,0.00016867,2]
[355912647,1741714232693,-1115.19116873,0.00016867,2]
[355912648,1741714232709,-500.0,0.00016867,2]
[355912649,1741714232724,-1115.19116873,0.00016867,2]
[355912650,1741714232739,-500.0,0.00016867,2]
[355912651,1741714232753,-1115.19116873,0.00016867,2]
[355912652,1741714232767,-500.0,0.00016867,2]
[355912653,1741714232782,-1115.19116873,0.00016867,2]
[355912654,1741714232796,-500.0,0.00016867,2]
[355912655,1741714232815,-1115.19116873,0.00016867,2]
[355912656,1741714232829,-500.0,0.00016867,2]
[355912657,1741714232843,-620.93580973,0.00016867,2]
[355912658,1741714232863,-494.255359,0.00016867,2]
[355912659,1741714232878,-500.0,0.00016867,2]
[355912660,1741714232892,-530.53713761,0.00016867,2]
[355912710,1741714238058,-500.0,0.00016866,2]
[355912712,1741714238068,-413.27824992,0.00016866,2]
[355912714,1741714238077,-500.0,0.00016866,2]
[355912716,1741714238086,-500.0,0.00016866,2]
[355912718,1741714238096,-321.48706244,0.00016866,2]
[355912720,1741714238106,-584.65403112,0.00016867,2]
[355912722,1741714238117,-500.0,0.00016867,2]
[355912724,1741714238127,-1115.19116873,0.00016867,2]
[355912725,1741714238137,-1115.19116873,0.00016867,2]
[355912726,1741714238146,-500.0,0.00016867,2]
[355912727,1741714238156,-1115.19116873,0.00016867,2]
[355912729,1741714238166,-281.88341699,0.00016867,2]
[355912730,1741714238176,-1115.19116873,0.00016867,2]
[355912732,1741714238186,-500.0,0.00016867,2]
[355912734,1741714238196,-1115.19116873,0.00016867,2]
[355912735,1741714238206,-500.0,0.00016867,2]
[355912736,1741714238216,-1115.19116873,0.00016867,2]
[355912738,1741714238228,-1115.19116873,0.00016867,2]
[355912740,1741714238238,-1115.19116873,0.00016867,2]
[355912742,1741714238247,-1115.19116873,0.00016867,2]
[355912744,1741714238257,-500.0,0.00016867,2]
[355912746,1741714238270,-1115.19116873,0.00016867,2]
[355912747,1741714238280,-1115.19116873,0.00016867,2]
[355912748,1741714238289,-1115.19116873,0.00016867,2]
[355912749,1741714238298,-1115.19116873,0.00016867,2]
[355912750,1741714238308,-500.0,0.00016867,2]
[355912751,1741714238318,-1115.19116873,0.00016867,2]
[355912752,1741714238328,-1115.19116873,0.00016867,2]
[355912753,1741714238337,-1115.19116873,0.00016867,2]
[355912754,1741714238348,-1115.19116873,0.00016867,2]
[355912755,1741714238358,-1115.19116873,0.00016867,2]
[355912756,1741714238370,-1115.19116873,0.00016867,2]
[355912757,1741714238380,-1115.19116873,0.00016867,2]
[355912758,1741714238390,-1115.19116873,0.00016867,2]
[355912759,1741714238399,-1115.19116873,0.00016867,2]
[355912760,1741714238409,-1115.19116873,0.00016867,2]
[355912761,1741714238419,-1115.19116873,0.00016867,2]
[355912762,1741714238429,-1115.19116873,0.00016867,2]
[355912763,1741714238439,-1115.19116873,0.00016867,2]
[355912764,1741714238449,-1115.19116873,0.00016867,2]
[355912765,1741714238459,-1115.19116873,0.00016867,2]
[355912766,1741714238469,-1115.19116873,0.00016867,2]
[355912767,1741714238479,-1115.19116873,0.00016867,2]
[355912768,1741714238488,-1115.19116873,0.00016867,2]
[355912769,1741714238498,-1115.19116873,0.00016867,2]
[355912770,1741714238508,-1115.19116873,0.00016867,2]
[355912771,1741714238517,-1115.19116873,0.00016867,2]
[355912772,1741714238526,-1115.19116873,0.00016867,2]
[355912773,1741714238536,-1115.19116873,0.00016867,2]
[355912774,1741714238546,-1115.19116873,0.00016867,2]
[355912775,1741714238555,-1115.19116873,0.00016867,2]
[355912776,1741714238564,-1115.19116873,0.00016867,2]
[355912777,1741714238573,-500.0,0.00016867,2]
[355912778,1741714238583,-500.0,0.00016867,2]
[355912779,1741714238592,-500.0,0.00016867,2]
[355912780,1741714238601,-500.0,0.00016867,2]
[355912781,1741714238613,-55.3351993,0.00016867,2]
[355912782,1741714238642,-444.6648007,0.00016867,2]
[355912783,1741714238651,-500.0,0.00016867,2]
[355912784,1741714238661,-4225.85180956,0.00016867,2]
[355912847,1741714240337,-0.00494155,0.00016867,2]
[355913003,1741714242188,1129.4511453,0.00015869,2]
[355913020,1741714242884,-3373.58593774,0.00016867,2]
[355913798,1741714329464,2479.8377663,0.0001587,2]
[355913800,1741714427802,4944.6275286,0.00015869,2]
[355913801,1741714477841,4975.82800485,0.00015867,2]
[355913802,1741714477862,3192.42588315,0.00015867,2]
[355913813,1741714604183,-5000.0,0.00016529,2]
[355913814,1741714604207,-5000.0,0.00016696,2]
[355913815,1741714604230,-318.8369586,0.00016765,2]
[355913816,1741714604254,-151.0,0.00016859,2]
[355913817,1741714604278,-600.0,0.00016859,2]
[355913818,1741714604302,-20000.0,0.00016863,2]
[355913819,1741714604325,-639.29477495,0.00016863,2]
[355913820,1741714604351,-500.0,0.00016863,2]
[355913821,1741714604375,-425.04094371,0.00016863,2]
[355913822,1741714604399,-500.0,0.00016863,2]
[355913823,1741714604420,-178.81399561,0.00016863,2]
[355913824,1741714604444,-500.0,0.00016863,2]
[355913825,1741714604467,-500.0,0.00016863,2]
[355913826,1741714604489,-500.0,0.00016863,2]
[355913827,1741714604513,-500.0,0.00016863,2]
[355913828,1741714604535,-500.0,0.00016863,2]
[355913829,1741714604556,-500.0,0.00016863,2]
[355913830,1741714604578,-500.0,0.00016863,2]
[355913831,1741714604600,-500.0,0.00016863,2]
[355913832,1741714604622,-500.0,0.00016863,2]
[355913833,1741714604643,-289.59183328,0.00016863,2]
[355913834,1741714604666,-500.0,0.00016863,2]
[355913835,1741714604688,-500.0,0.00016863,2]
[355913836,1741714604710,-500.0,0.00016863,2]
[355913837,1741714604732,-500.0,0.00016863,2]
[355913838,1741714604754,-500.0,0.00016863,2]
[355913839,1741714604777,-500.0,0.00016863,2]
[355913840,1741714604802,-500.0,0.00016863,2]
[355913841,1741714604824,-500.0,0.00016863,2]
[355913842,1741714604846,-500.0,0.00016863,2]
[355913843,1741714604868,-500.0,0.00016863,2]
[355913844,1741714604891,-500.0,0.00016863,2]
[355913845,1741714604914,-500.0,0.00016863,2]
[355913846,1741714604939,-500.0,0.00016863,2]
[355913847,1741714604962,-500.0,0.00016863,2]
[355913848,1741714604985,-500.0,0.00016863,2]
[355913849,1741714605008,-500.0,0.00016863,2]
[355913850,1741714605033,-500.0,0.00016863,2]
[355913851,1741714605057,-500.0,0.00016863,2]
[355913852,1741714605081,-500.0,0.00016863,2]
[355913853,1741714605105,-500.0,0.00016863,2]
[355913854,1741714605130,-500.0,0.00016863,2]
[355913855,1741714605155,-500.0,0.00016863,2]
[355913856,1741714605180,-500.0,0.00016863,2]
[355913857,1741714605203,-500.0,0.00016863,2]
[355913858,1741714605226,-500.0,0.00016863,2]
[355913859,1741714605250,-650.0,0.00016863,2]
[355913860,1741714609152,5000.0,0.00016864,2]
[355913861,1741714611901,1095.62,0.00010959,2]
[355913862,1741714617094,5000.0,0.00016864,2]
[355913863,1741714620911,9791.49235598,0.00016863,2]
[355913864,1741714620956,9791.49235598,0.00016863,2]
[355913865,1741714620994,9791.49235598,0.00016863,2]
[355913866,1741714621041,9791.49235598,0.00016863,2]
[355913867,1741714621078,9791.49235598,0.00016863,2]
[355913868,1741714621119,9791.49235598,0.00016863,2]
[355913869,1741714621159,9791.49235598,0.00016863,2]
[355913870,1741714621206,9791.49235598,0.00016863,2]
[355913871,1741714621243,9791.49235598,0.00016863,2]
[355913872,1741714621290,9791.49235598,0.00016863,2]
[355913873,1741714621335,8340.87793405,0.00016863,2]
[355913874,1741714622784,913.02,0.00010959,2]
[355913926,1741714633143,760.85,0.00010959,2]
[355913928,1741714633188,1590.59740406,0.00016022,2]
[355914280,1741714643634,634.04,0.00010959,2]
[355914635,1741714654399,528.37,0.00010959,2]
[355914744,1741714657795,490.5217511,0.00015864,2]
[355915079,1741714664907,440.31,0.00010959,2]
[355915485,1741714675386,366.92,0.00010959,2]
[355915488,1741714679070,-500.0,0.00016164,2]
[355915489,1741714679093,-3096.30513904,0.00016763,2]
[355915490,1741714679115,-300.0,0.00016862,2]
[355915492,1741714683233,300.0,0.00016862,2]
[355915493,1741714685911,305.77,0.00010959,2]
[355915494,1741714688914,-1450.61442193,0.00016863,2]
[355915495,1741714688937,-9791.49235598,0.00016863,2]
[355915496,1741714688960,-9791.49235598,0.00016863,2]
[355915497,1741714688984,-9791.49235598,0.00016863,2]
[355915498,1741714689008,-9791.49235598,0.00016863,2]
[355915499,1741714689032,-9791.49235598,0.00016863,2]
[355915500,1741714689056,-9791.49235598,0.00016863,2]
[355915501,1741714689080,-9791.49235598,0.00016863,2]
[355915502,1741714689104,-9791.49235598,0.00016863,2]
[355915503,1741714689127,-9791.49235598,0.00016863,2]
[355915504,1741714689151,-9791.49235598,0.00016863,2]
[355915505,1741714689175,-9791.49235598,0.00016863,2]
[355915506,1741714689199,-9791.49235598,0.00016863,2]
[355915507,1741714689224,-9791.49235598,0.00016863,2]
[355915508,1741714689249,-9791.49235598,0.00016863,2]
[355915509,1741714689274,-9791.49235598,0.00016863,2]
[355915510,1741714689297,-9791.49235598,0.00016863,2]
[355915511,1741714689321,-9791.49235598,0.00016863,2]
[355915512,1741714689344,-9791.49235598,0.00016863,2]
[355915513,1741714689369,-9791.49235598,0.00016863,2]
[355915514,1741714689394,-9791.49235598,0.00016863,2]
[355915515,1741714689417,-9791.49235598,0.00016863,2]
[355915516,1741714689440,-9791.49235598,0.00016863,2]
[355915517,1741714689467,-9791.49235598,0.00016863,2]
[355915518,1741714689493,-9791.49235598,0.00016863,2]
[355915519,1741714689519,-9791.49235598,0.00016863,2]
[355915520,1741714689542,-9791.49235598,0.00016863,2]
[355915521,1741714689567,-9791.49235598,0.00016863,2]
[355915522,1741714689590,-9791.49235598,0.00016863,2]
[355915523,1741714689614,-9791.49235598,0.00016863,2]
[355915524,1741714689637,-9791.49235598,0.00016863,2]
[355915525,1741714689661,-9791.49235598,0.00016863,2]
[355915526,1741714689684,-9791.49235598,0.00016863,2]
[355915527,1741714689707,-9791.49235598,0.00016863,2]
[355915528,1741714689728,-9791.49235598,0.00016863,2]
[355915529,1741714689753,-9791.49235598,0.00016863,2]
[355915530,1741714689776,-9791.49235598,0.00016863,2]
[355915531,1741714690105,-9791.49235598,0.00016863,2]
[355915532,1741714690132,-9791.49235598,0.00016863,2]
[355915533,1741714690157,-9791.49235598,0.00016863,2]
[355915534,1741714690183,-9791.49235598,0.00016863,2]
[355915535,1741714690208,-9791.49235598,0.00016863,2]
[355915536,1741714690232,-9791.49235598,0.00016863,2]
[355915537,1741714690257,-3916.5969424,0.00016863,2]
[355915538,1741714690281,-3916.5969424,0.00016863,2]
[355915539,1741714690305,-3916.5969424,0.00016863,2]
[355915540,1741714690328,-3916.5969424,0.00016863,2]
[355915541,1741714690352,-3916.5969424,0.00016863,2]
[355915542,1741714690379,-3916.5969424,0.00016863,2]
[355915543,1741714690403,-3916.5969424,0.00016863,2]
[355915544,1741714690427,-3916.5969424,0.00016863,2]
[355915545,1741714690451,-3916.5969424,0.00016863,2]
[355915546,1741714690475,-3916.5969424,0.00016863,2]
[355915547,1741714690500,-3916.5969424,0.00016863,2]
[355915548,1741714690523,-3916.5969424,0.00016863,2]
[355915549,1741714690548,-3916.5969424,0.00016863,2]
[355915550,1741714690571,-3916.5969424,0.00016863,2]
[355915551,1741714690595,-3916.5969424,0.00016863,2]
[355915552,1741714690618,-3916.5969424,0.00016863,2]
[355915553,1741714690640,-3916.5969424,0.00016863,2]
[355915554,1741714690664,-3916.5969424,0.00016863,2]
[355915555,1741714690687,-3916.5969424,0.00016863,2]
[355915556,1741714690711,-3916.5969424,0.00016863,2]
[355915557,1741714690733,-3916.5969424,0.00016863,2]
[355915558,1741714690758,-3916.5969424,0.00016863,2]
[355915559,1741714690782,-3916.5969424,0.00016863,2]
[355915560,1741714690805,-3916.5969424,0.00016863,2]
[355915561,1741714690830,-3916.5969424,0.00016863,2]
[355915562,1741714690853,-3916.5969424,0.00016863,2]
[355915563,1741714690877,-3916.5969424,0.00016863,2]
[355915564,1741714690900,-3916.59694226,0.00016863,2]
[355915565,1741714690922,-151.0,0.00016864,2]
[355915566,1741714690944,-151.0,0.00016864,2]
[355915567,1741714690965,-186.444339,0.00016864,2]
[355915568,1741714696429,254.81,0.00010959,2]
[355915569,1741714707134,212.34,0.00010959,2]
[355915571,1741714717874,176.95,0.00010959,2]
[355915572,1741714729819,884.76,0.00010959,2]
[355915573,1741714739180,415.64,0.00010959,2]
[355915574,1741714749681,346.36,0.00010959,2]
[355915575,1741714760212,288.64,0.00010959,2]
[355915576,1741714770720,240.53,0.00010959,2]
[355915577,1741714792010,200.44,0.00010959,2]
[355915579,1741714802541,167.03,0.00010959,2]
[355915580,1741714813056,835.2,0.00010959,2]
[355915581,1741714838618,5000.0,0.00016022,2]
[355915582,1741714853948,5000.0,0.00016022,2]
[355915646,1741714869221,5000.0,0.00016022,2]
[355915755,1741714871739,3081.588928,0.00015863,2]
[355915907,1741714884545,5000.0,0.00016022,2]
[355915928,1741714900074,5000.0,0.00016022,2]
[355915940,1741714915364,1299.0983634,0.00016022,2]
[355916639,1741715060567,2070.4917164,0.00015862,2]
[355916856,1741715170284,9785.6838006,0.0001599,2]
[355916895,1741715187366,10000.0,0.00015863,2]
[355917051,1741715304579,182.9730235,0.00015854,2]
[355917085,1741715342092,250.0,0.00015829,2]
[355917093,1741715357414,-790.61400583,0.00016028,2]
[355917094,1741715357449,-76.28446641,0.00016661,2]
[355917207,1741715432989,-804.64988169,0.0001663,2]
[355917208,1741715432999,-63.18011831,0.00016661,2]